bitfinex-derivatives/quotes_ETHF0:USTF0_20250927
["timestamp","ask_amount","ask_price","bid_price","bid_amount"]
[1758992826316,1.0753,4001.4,4001.3,18.32824895]
[1758992826618,1.0753,4001.4,4001.3,18.59724895]
[1758992826831,1.0753,4001.4,4001.3,19.34604895]
[1758992827627,1.0753,4001.4,4001.3,18.90204895]
[1758992827824,1.0753,4001.4,4001.3,18.63304895]
[1758992828124,1.0753,4001.4,4001.3,18.90204895]
[1758992828530,1.0753,4001.4,4001.3,19.36884895]
[1758992828725,1.0753,4001.4,4001.3,18.32824895]
[1758992829028,1.0753,4001.4,4001.3,18.59724895]
[1758992829931,1.0753,4001.4,4001.3,0.5753]
[1758992830227,1.0753,4001.4,4001.3,18.59724895]
[1758992830625,0.6249,4001.2,4001.1,0.00185145]
[1758992830831,1.0675,4001.2,4001.1,0.27085145]
[1758992831924,1.0675,4001.2,4001.1,0.00185145]
[1758992832430,1.0675,4001.2,4001.1,0.27085145]
[1758992832631,1.0675,4001.2,4001.1,0.00185145]
[1758992833924,0.6249,4001.2,4000.2,3.2078]
[1758992834232,1.51719,4000.3,4000.2,3.5284]
[1758992834533,1.51719,4000.3,4000.2,3.7964]
[1758992835128,1.51980737,4000.3,4000.2,3.53134844]
[1758992835334,1.51980737,4000.3,4000.2,3.47874844]
[1758992836029,1.51980737,4000.3,4000.2,0.27094844]
[1758992836227,6.51980737,4000.3,4000.2,0.00294844]
[1758992838326,9.72760737,4000.3,4000.2,0.00294844]
[1758992838928,1.20511,3999.3,3999.2,4.2973]
[1758992839126,1.51731,3999.3,3999.2,3.5284]
[1758992839330,1.51731,3999.3,3999.2,3.2078]
[1758992839529,1.51731,3999.3,3999.2,4.0985]
[1758992840030,1.51731,3999.3,3999.2,4.10123519]
[1758992840532,1.51731,3999.3,3999.2,3.83323519]
[1758992840929,1.51731,3999.3,3999.2,4.10123519]
[1758992841128,1.51731,3999.3,3999.2,3.83323519]
[1758992841333,1.51731,3999.3,3999.2,4.10123519]
[1758992842833,1.51731,3999.3,3999.2,3.83323519]
[1758992843133,1.51731,3999.3,3999.2,4.10123519]
[1758992843826,1.51731,3999.3,3999.2,3.21053519]
[1758992844128,1.51731,3999.3,3999.2,0.00273519]
[1758992845237,6.51731,3999.3,3999.2,0.00273519]
[1758992846936,1.12442,3999.7,3999.2,18.65848414]
[1758992846937,0.475,3999.7,3999.2,18.65848414]
[1758992847132,0.4498,3999.4,3999.3,1.3655]
[1758992847632,0.4498,3999.4,3999.3,19.38744895]
[1758992848230,1.5553,3999.4,3999.3,19.38744895]
[1758992849133,1.5553,3999.4,3999.3,18.65574895]
[1758992849334,1.5553,3999.4,3999.2,0.00273519]
[1758992849538,1.0803,3999.4,3999.3,0.3204]
[1758992849735,1.0803,3999.4,3999.3,1.0985]
[1758992850137,1.5553,3999.4,3999.2,0.00273519]
[1758992850336,4.7631,3999.4,3999.2,0.00273519]
[1758992851536,4.2881,3999.4,3999.2,0.00273519]
[1758992851839,1.5553,3999.4,3999.3,1.0985]
[1758992854837,1.5553,3999.4,3999.3,0.6338]
[1758992855436,4.7631,3999.4,3999.3,0.3204]
[1758992855633,4.7631,3999.4,3999.2,0.00273519]
[1758992855634,1.55531,3999.3,3999.2,0.00273519]
[1758992856436,2.04933528,3999.3,3999.2,0.00273519]
[1758992856942,1.55536,3998.8,3998.7,3.2078]
[1758992857435,1.55536,3998.8,3998.7,18.02194895]
[1758992857636,1.24392,3998.3,3998.2,4.3063]
[1758992857831,0.44991,3998.4,3998.3,0.91462]
[1758992858036,0.44991,3998.4,3998.3,1.54842]
[1758992858237,0.76891,3998.4,3998.3,19.57036895]
[1758992858443,1.24391,3998.4,3998.3,19.57036895]
[1758992859544,1.24391,3998.4,3998.3,19.12044895]
[1758992859738,0.794,3998.4,3998.3,19.12044895]
[1758992861147,0.44988,3998.6,3998.5,1.2767]
[1758992861345,3.2078,4000.0,3999.7,0.44976]
[1758992861641,3.2078,4000.0,3999.9,18.02194895]
[1758992861642,0.6621,4000.0,3999.9,18.02194895]
[1758992868055,0.1871,4000.0,3999.9,23.16672896]
[1758992868757,0.47761737,4000.3,3999.9,28.16672896]
[1758992869058,0.47761737,4000.3,4000.2,21.67944895]
[1758992869259,0.47761737,4000.3,4000.2,21.94544895]
[1758992870060,0.6496,4000.5,4000.4,0.44968]
[1758992870256,0.6496,4000.5,4000.4,18.73762895]
[1758992870958,0.65277711,4000.5,4000.4,18.73762895]
[1758992874655,0.97177711,4000.5,4000.4,18.47162895]
[1758992874861,1.28967711,4000.5,4000.4,18.73762895]
[1758992877251,1.28967711,4000.5,4000.4,0.44968]
[1758992877554,1.0876,4000.3,4000.2,3.6575]
[1758992877750,1.0876,4000.3,4000.2,3.9235]
[1758992879462,1.0876,4000.3,4000.2,3.4738]
[1758992880261,1.0876,4000.3,4000.2,3.2078]
[1758992880464,1.0876,4000.3,4000.2,3.4738]
[1758992881860,0.469,4000.3,4000.2,3.4738]
[1758992882055,0.469,4000.3,4000.2,3.9235]
[1758992882358,0.7697,4000.3,4000.2,3.9235]
[1758992884058,1.0876,4000.3,4000.2,3.4738]
[1758992884960,1.53729,4000.3,4000.2,3.4738]
[1758992885159,1.0876,4000.3,4000.2,3.9235]
[1758992885659,1.53729,4000.3,4000.2,3.9235]
[1758992886062,1.0876,4000.3,4000.2,3.9235]
[1758992886563,1.53729,4000.3,4000.2,3.9235]
[1758992886859,0.469,4000.3,4000.2,21.94544895]
[1758992887362,0.64677711,4000.5,4000.4,0.44968]
[1758992887556,0.64677711,4000.5,4000.4,20.18500705]
[1758992888360,0.17777711,4000.5,4000.4,20.18500705]
[1758992888662,0.17777711,4000.5,4000.4,23.73762895]
[1758992889057,0.00317711,4000.5,4000.4,23.73762895]
[1758992889263,0.1871,4001.0,4000.9,0.44963]
[1758992889461,0.1871,4001.0,4000.9,21.94537895]
[1758992889964,0.6231,4001.0,4000.9,3.92343]
[1758992890165,0.625714,4001.0,4000.9,21.94537895]
[1758992892457,0.912114,4001.0,4000.9,21.22974895]
[1758992892660,1.201214,4001.0,4000.9,3.4738]
[1758992893367,1.201214,4001.0,4000.9,3.2078]
[1758992893568,1.201214,4001.0,4000.9,3.4738]
[1758992898776,1.201214,4001.0,4000.9,3.2078]
[1758992898962,1.69639411,4001.0,4000.9,3.4738]
[1758992900570,2.14600411,4001.0,4000.9,3.4738]
[1758992901072,2.14600411,4001.0,4000.9,3.92343]
[1758992901569,2.14600411,4001.0,4000.9,3.4738]
[1758992901968,2.14600411,4001.0,4000.9,21.49574895]
[1758992902478,2.14600411,4001.0,4000.9,21.94537895]
[1758992902967,2.14600411,4001.0,4000.9,21.49574895]
[1758992903172,2.14600411,4001.0,4000.9,18.28794895]
[1758992903772,2.14600411,4001.0,4000.9,18.73757895]
[1758992906773,2.14600411,4001.0,4000.9,18.28794895]
[1758992906975,2.14600411,4001.0,4000.9,18.73757895]
[1758992908981,2.14600411,4001.0,4000.9,18.28794895]
[1758992910278,2.14600411,4001.0,4000.9,18.73757895]
[1758992912480,1.12089411,4001.0,4000.9,18.73757895]
[1758992916079,1.41749411,4001.0,4000.9,18.28794895]
[1758992918577,1.41749411,4001.0,4000.9,18.73757895]
[1758992918578,1.12089411,4001.0,4000.9,18.73757895]
[1758992919886,1.12089411,4001.0,4000.9,0.71563]
[1758992920087,1.12089411,4001.0,4000.9,18.73757895]
[1758992924794,0.68489411,4001.0,4000.9,18.73757895]
[1758992925789,1.14019411,4001.0,4000.9,18.73757895]
[1758992927493,1.14075057,4001.0,4000.9,18.73757895]
[1758992927991,0.645014,4001.0,4000.9,18.73757895]
[1758992928286,0.6424,4001.5,4001.4,0.44957]
[1758992928588,0.6424,4001.5,4001.4,23.74853974]
[1758992929176,0.64563784,4001.5,4001.4,23.75057638]
[1758992932286,0.00323784,4001.5,4001.4,23.75057638]
[1758992932989,0.18023784,4001.5,4001.4,23.86818595]
[1758992933193,0.61283784,4001.5,4001.4,23.86818595]
[1758992933884,0.61283784,4001.5,4001.4,23.48457638]
[1758992934090,1.21913784,4001.5,4001.4,3.20983664]
[1758992934388,1.21913784,4001.5,4001.4,3.47583664]
[1758992937692,1.21913784,4001.5,4001.4,3.20983664]
[1758992937894,1.21913784,4001.5,4001.4,3.47483664]
[1758992939799,1.21913784,4001.5,4001.4,3.20983664]
[1758992939994,1.21913784,4001.5,4001.4,3.47483664]
[1758992942290,1.66869784,4001.5,4001.4,3.47483664]
[1758992942903,1.66869784,4001.5,4001.4,3.92440664]
[1758992943096,1.66869784,4001.5,4001.4,3.65940664]
[1758992943296,1.66869784,4001.5,4001.4,3.47483664]
[1758992943894,1.66869784,4001.5,4001.4,3.92440664]
[1758992944596,1.66869784,4001.5,4001.4,3.47483664]
[1758992945492,1.66869784,4001.5,4001.4,0.26703664]
[1758992945700,2.16367684,4001.5,4001.4,0.71660664]
[1758992945888,2.16367684,4001.5,4001.4,0.45160664]
[1758992946092,2.16367684,4001.5,4001.4,0.71660664]
[1758992946386,2.16367684,4001.5,4001.4,0.26703664]
[1758992946994,1.66869784,4001.5,4001.4,0.71660664]
[1758992947297,1.06239784,4001.5,4001.4,0.71660664]
[1758992947704,1.37279784,4001.5,4001.4,3.92440664]
[1758992949100,1.71436091,4001.5,4001.4,3.92440664]
[1758992949302,0.61283784,4001.5,4001.4,23.74957638]
[1758992949900,0.61283784,4001.5,4001.4,5.72762743]
[1758992950105,0.61283784,4001.5,4001.4,23.74957638]
[1758992953009,0.18023784,4001.5,4001.4,28.74957638]
[1758992953307,0.1871,4002.0,4001.9,0.44951]
[1758992953501,0.6432,4002.0,4001.9,21.94425895]
[1758992954299,0.64506514,4002.0,4001.9,21.94425895]
[1758992956608,0.64506514,4002.0,4001.9,23.39000693]
[1758992960808,0.92716514,4002.0,4001.9,23.39000693]
[1758992965299,0.64506514,4002.0,4001.9,23.39000693]
[1758992967113,0.92046514,4002.0,4001.9,23.39000693]
[1758992968114,0.64506514,4002.0,4001.9,23.39000693]
[1758992975422,0.18896514,4002.0,4001.9,23.39000693]
[1758992975716,0.00186514,4002.0,4001.9,23.39000693]
[1758992976914,0.00186514,4002.0,4001.9,28.39000693]
[1758992977216,0.60006514,4002.0,4001.9,28.39000693]
[1758992977816,0.60006514,4002.0,4001.9,21.94425895]
[1758992978119,0.60006514,4002.0,4001.9,23.39000693]
[1758992978323,0.00186514,4002.0,4001.9,23.39000693]
[1758992980527,0.60006514,4002.0,4001.9,23.39000693]
[1758992981223,1.16106514,4002.0,4001.9,23.02165876]
[1758992981424,1.16106514,4002.0,4001.9,3.4718]
[1758992981720,6.16106514,4002.0,4001.9,3.4718]
[1758992981923,1.16106514,4002.0,4001.9,3.4718]
[1758992984322,1.12379,4001.9,4001.4,4.55638981]
[1758992984631,1.1592,4001.5,4001.4,3.49783664]
[1758992984926,1.1592,4001.5,4001.4,4.05143664]
[1758992986122,6.1592,4001.5,4001.4,0.00203664]
[1758992986429,6.65312664,4001.5,4001.4,0.26603664]
[1758992987228,6.1592,4001.5,4001.4,0.26603664]
[1758992989130,1.1592,4001.5,4001.4,0.26603664]
[1758992991328,1.1592,4001.5,4001.4,0.84363664]
[1758992991633,1.1592,4001.5,4001.4,1.17173664]
[1758992992132,1.1592,4001.5,4001.4,0.84363664]
[1758992997538,1.1592,4001.5,4001.4,1.29320664]
[1758993000340,1.60876,4001.5,4001.4,1.29320664]
[1758993000538,1.60876,4001.5,4001.4,0.26603664]
[1758993000730,3.05450798,4001.5,4001.4,0.00203664]
[1758993000936,6.60876,4001.5,4001.4,0.26603664]
[1758993001740,6.60876,4001.5,4001.4,0.00203664]
[1758993002039,6.60876,4001.5,4001.4,0.26603664]
[1758993005849,6.60876,4001.5,4001.4,0.00203664]
[1758993006945,1.1592,4001.5,4001.4,19.36495559]
[1758993007141,1.60876,4001.5,4001.4,18.91538559]
[1758993007445,1.60876,4001.5,4001.4,18.59258559]
[1758993009942,1.60876,4001.5,4001.4,0.57063664]
[1758993010137,1.60876,4001.5,4001.4,18.59258559]
[1758993010449,1.60876,4001.5,4001.4,19.04215559]
[1758993010647,1.60876,4001.5,4001.4,18.59258559]
[1758993011147,2.10318283,4001.5,4001.4,18.59258559]
[1758993011939,2.10318283,4001.5,4001.4,18.85658559]
[1758993012140,2.10318283,4001.5,4001.4,19.30615559]
[1758993014847,2.10318283,4001.5,4001.4,18.85658559]
[1758993015649,2.10318283,4001.5,4001.4,19.30615559]
[1758993021550,2.10318283,4001.5,4001.4,19.62095559]
[1758993022351,2.10318283,4001.5,4001.4,19.17138559]
[1758993024150,2.10318283,4001.5,4001.4,19.62095559]
[1758993026150,2.10318283,4001.5,4001.4,19.17138559]
[1758993026450,2.10318283,4001.5,4001.4,19.62095559]
[1758993028149,1.81758283,4001.5,4001.4,19.62095559]
[1758993030049,1.36802283,4001.5,4001.4,19.62095559]
[1758993030855,1.81758283,4001.5,4001.4,19.62095559]
[1758993032054,1.81758283,4001.5,4001.4,19.17138559]
[1758993033159,1.81758283,4001.5,4001.4,19.62095559]
[1758993039664,1.81758283,4001.5,4001.4,19.35695559]
[1758993039858,1.81758283,4001.5,4001.4,19.61995559]
[1758993040361,2.11118283,4001.5,4001.4,0.28973664]
[1758993040561,2.11118283,4001.5,4001.4,0.55273664]
[1758993040763,2.11118283,4001.5,4001.4,0.26503664]
[1758993042065,2.11118283,4001.5,4001.4,0.55013664]
[1758993047166,0.49442283,4001.5,4001.4,24.35684351]
[1758993047368,0.4438,4001.8,4001.7,1.32234]
[1758993047566,0.4438,4001.8,4001.7,21.40997687]
[1758993047870,0.94017079,4001.8,4001.7,21.40997687]
[1758993050073,0.49637079,4001.8,4001.7,21.40997687]
[1758993050575,0.44566514,4002.0,4001.9,1.32231]
[1758993050871,0.94169681,4002.0,4001.9,22.81505895]
[1758993051173,0.94169681,4002.0,4001.9,4.79311]
[1758993051672,0.94169681,4002.0,4001.9,22.81505895]
[1758993052875,1.40619681,4002.0,4001.9,22.36554895]
[1758993053175,1.69979681,4002.0,4001.9,22.05764895]
[1758993054566,1.69979681,4002.0,4001.9,18.58684895]
[1758993054771,1.44883,4001.8,4001.7,0.269]
[1758993055076,1.44883,4001.8,4001.7,0.532]
[1758993057484,1.44883,4001.8,4001.4,0.00203664]
[1758993057485,1.62086,4001.5,4001.4,0.00203664]
[1758993057686,1.0206,4001.1,4001.0,0.262]
[1758993057883,1.94456089,4001.1,4001.0,0.262]
[1758993058077,1.94456089,4001.1,4000.9,3.2078]
[1758993058078,0.743,4001.0,4000.9,3.2078]
[1758993058385,0.571,4000.8,4000.7,0.262]
[1758993058581,0.571,4000.8,4000.0,0.49670142]
[1758993058582,1.16292,4000.1,4000.0,5.13403459]
[1758993058777,1.44902,4000.1,4000.0,3.74370182]
[1758993059089,1.44902,4000.1,4000.0,3.47300182]
[1758993060380,1.44902,4000.1,4000.0,3.74200182]
[1758993060777,1.44902,4000.1,4000.0,3.47300182]
[1758993060982,1.44902,4000.1,4000.0,0.26520182]
[1758993061891,1.44902,4000.1,4000.0,0.00320182]
[1758993062083,1.44902,4000.1,4000.0,0.26520182]
[1758993062590,1.44902,4000.1,4000.0,0.00320182]
[1758993062786,1.44902,4000.1,4000.0,0.26520182]
[1758993067091,1.44902,4000.1,4000.0,0.00320182]
[1758993068586,0.88492,4001.0,4000.9,0.8361]
[1758993068789,0.4353,4001.0,4000.9,20.92273687]
[1758993069189,0.8606,4001.0,4000.9,20.92273687]
[1758993069390,0.4253,4001.4,4001.0,0.2859]
[1758993069593,0.4253,4001.4,4001.3,18.85804895]
[1758993069800,0.6886,4001.4,4001.3,19.56962895]
[1758993069998,0.6886,4001.4,4001.3,1.54768]
[1758993070201,0.6886,4001.4,4001.3,19.56962895]
[1758993071807,0.6886,4001.4,4001.3,19.30762895]
[1758993072005,0.6886,4001.4,4001.3,19.56962895]
[1758993072505,1.41097,4001.4,4001.3,18.02194895]
[1758993072709,1.1255,4001.0,4000.9,0.99982]
[1758993073004,0.44958,4001.4,4001.3,19.30762895]
[1758993073005,0.6886,4001.4,4001.3,19.30762895]
[1758993073305,0.6886,4001.4,4001.3,19.56962895]
[1758993077609,0.172,4001.5,4000.6,3.2078]
[1758993077610,0.8527,4001.0,4000.9,0.8361]
[1758993077795,0.8527,4001.0,4000.9,1.0981]
[1758993077998,0.8527,4001.0,4000.9,19.56967895]
[1758993079710,0.8527,4001.0,4000.9,18.85804895]
[1758993079908,0.9614,4000.7,4000.6,3.4852]
[1758993080210,0.9614,4000.7,4000.6,3.7472]
[1758993080405,0.9614,4000.7,4000.6,22.21880895]
[1758993080612,0.9614,4000.7,4000.6,22.49160895]
[1758993081610,0.9614,4000.7,4000.6,22.04194895]
[1758993081811,0.6886,4000.7,4000.6,22.32784895]
[1758993082000,0.5894,4001.0,4000.9,0.8361]
[1758993082204,1.1255,4001.0,4000.9,18.83414895]
[1758993082405,0.9614,4000.7,4000.6,3.4852]
[1758993082712,0.9614,4000.7,4000.6,4.02]
[1758993082898,0.9614,4000.7,4000.6,22.04194895]
[1758993084208,2.4087193,4000.7,4000.6,3.2078]
[1758993086611,0.9614,4000.7,4000.6,3.2078]
[1758993086910,0.9614,4000.7,4000.6,3.7664]
[1758993087915,0.9614,4000.7,4000.6,3.4805]
[1758993088605,0.9614,4000.7,4000.6,3.7664]
[1758993088807,0.4253,4000.7,4000.6,22.06704895]
[1758993089108,0.1641,4001.0,4000.9,1.28693]
[1758993089109,0.44962,4001.0,4000.9,1.28693]
[1758993089312,0.44962,4001.0,4000.9,21.01819825]
[1758993089719,0.8496,4001.2,4001.1,0.5586]
[1758993089913,1.3439248,4001.2,4001.1,1.0993]
[1758993090416,0.172,4001.5,4001.2,1.28689]
[1758993090417,0.44958,4001.3,4001.2,1.28689]
[1758993090613,0.44958,4001.3,4001.2,20.75615825]
[1758993090916,0.94391685,4001.3,4001.2,2.7342093]
[1758993091213,1.34391685,4001.3,4001.2,2.7342093]
[1758993091613,0.84958,4001.3,4001.2,2.7342093]
[1758993091809,0.44958,4001.3,4001.2,20.75615825]
[1758993092317,0.84958,4001.3,4001.2,20.75615825]
[1758993092507,1.62400519,4001.3,4001.2,19.30883895]
[1758993092707,1.62400519,4001.3,4001.2,20.75615825]
[1758993093020,0.84958,4001.3,4001.2,20.75615825]
[1758993093220,1.34404856,4001.3,4001.2,20.75615825]
[1758993094619,1.34404856,4001.3,4001.2,21.01815825]
[1758993094819,0.89446856,4001.3,4001.2,21.01815825]
[1758993095916,0.4,4001.3,4001.2,21.01815825]
[1758993096620,0.89477945,4001.3,4001.2,21.01815825]
[1758993097321,1.34435945,4001.3,4001.2,21.01815825]
[1758993097621,1.34435945,4001.3,4001.2,20.75615825]
[1758993097816,1.34435945,4001.3,4001.2,21.01815825]
[1758993099617,1.34435945,4001.3,4001.2,20.56856825]
[1758993099922,1.88375945,4001.3,4001.2,0.8206]
[1758993100122,1.88375945,4001.3,4001.2,18.84254895]
[1758993100515,1.88375945,4001.3,4001.2,19.12124895]
[1758993103722,1.62435945,4001.3,4001.2,19.12124895]
[1758993104322,1.62435945,4001.3,4001.2,19.57083895]
[1758993104820,1.62435945,4001.3,4001.2,19.12124895]
[1758993105023,1.62435945,4001.3,4001.2,19.12024895]
[1758993106429,1.62435945,4001.3,4001.2,19.56983895]
[1758993106617,0.89477945,4001.3,4001.2,21.01715825]
[1758993106816,1.34435945,4001.3,4001.2,21.01715825]
[1758993107928,1.34435945,4001.3,4001.2,20.56756825]
[1758993110130,1.34435945,4001.3,4001.2,20.30656825]
[1758993110426,1.34435945,4001.3,4001.2,20.56756825]
[1758993111834,0.94435945,4001.3,4001.2,20.56756825]
[1758993112326,1.34435945,4001.3,4001.2,20.56756825]
[1758993114331,1.34435945,4001.3,4001.2,19.12024895]
[1758993120435,1.34435945,4001.3,4001.2,18.85924895]
[1758993120733,1.34435945,4001.3,4001.2,19.12024895]
[1758993121842,0.41078968,4001.3,4001.2,19.56983895]
[1758993122135,0.45136514,4002.0,4001.9,0.8182]
[1758993122333,0.45136514,4002.0,4001.9,20.54846825]
[1758993122927,0.00186514,4002.0,4001.9,20.54846825]
[1758993123934,0.81446514,4002.0,4001.9,19.10114895]
[1758993124134,0.81446514,4002.0,4001.9,20.54846825]
[1758993125323,0.81446514,4002.0,4001.9,0.2791]
[1758993125324,1.07546514,4002.0,4001.9,0.2791]
[1758993125524,0.81446514,4002.0,4001.9,2.2620193]
[1758993125724,0.54656514,4002.0,4001.9,2.5265193]
[1758993126131,0.38546514,4002.0,4001.9,2.5265193]
[1758993126829,0.38546514,4002.0,4001.7,3.4869]
[1758993126830,0.9125,4001.8,4001.7,3.4869]
[1758993127133,0.9125,4001.8,4001.7,3.7479]
[1758993127640,0.2679,4001.4,4001.3,0.5537]
[1758993127931,0.9125,4001.4,4001.3,0.5537]
[1758993128130,0.9125,4001.4,4001.3,0.8147]
[1758993128324,1.36207,4001.4,4001.3,0.8147]
[1758993128730,1.36207,4001.4,4001.3,1.0758]
[1758993129437,1.36207,4001.4,4001.3,0.8147]
[1758993131229,1.36207,4001.4,4001.3,0.2791]
[1758993131441,1.57261,4001.0,4000.9,0.5324]
[1758993131637,1.57261,4001.0,4000.9,18.81534895]
[1758993131833,1.57261,4001.0,4000.9,18.55434895]
[1758993132036,0.44967,4000.5,4000.4,0.5324]
[1758993132242,1.29907,4000.5,4000.4,1.0545]
[1758993132541,1.29907,4000.5,4000.4,18.81544895]
[1758993132745,1.29907,4000.5,4000.4,19.07644895]
[1758993133242,0.8494,4000.5,4000.4,19.07644895]
[1758993133442,0.5826,4000.5,4000.4,19.07644895]
[1758993134344,0.415,4000.5,4000.4,19.07644895]
[1758993138845,0.415,4000.5,4000.4,19.52612895]
[1758993140547,0.415,4000.5,4000.4,21.32937366]
[1758993141145,0.99009,4000.3,4000.2,1.16028035]
[1758993141342,0.9554,4000.1,4000.0,0.26420182]
[1758993141547,0.6818,4000.1,4000.0,1.05770182]
[1758993141739,0.415,4000.4,4000.0,18.81855077]
[1758993141944,0.86468,4000.4,4000.3,0.5324]
[1758993142243,0.86468,4000.4,4000.3,1.0545]
[1758993142551,1.62599161,4000.4,4000.3,0.7934]
[1758993142755,1.89959161,4000.4,4000.3,0.7934]
[1758993142945,1.40508,4000.4,4000.3,0.7934]
[1758993146846,0.415,4000.4,4000.3,19.06994895]
[1758993147042,0.3848,4000.5,4000.4,0.2546]
[1758993147238,0.3848,4000.5,4000.4,18.81734895]
[1758993147444,0.6438,4000.8,4000.7,1.24505]
[1758993147652,0.6438,4000.8,4000.7,19.52699895]
[1758993148846,0.3848,4000.8,4000.7,19.52699895]
[1758993150054,0.3848,4000.8,4000.7,1.50505]
[1758993150254,0.6438,4000.8,4000.7,19.52699895]
[1758993151156,12.10804,4000.8,4000.7,0.08328002]
[1758993151350,1.35812,4000.1,3999.5,3.2078]
[1758993151553,3.16136471,4000.1,3999.7,0.168]
[1758993151752,0.1627,3999.5,3999.3,3.2078]
[1758993151953,0.9084,3999.4,3999.3,3.2078]
[1758993152250,0.9084,3999.4,3999.3,3.4678]
[1758993152844,0.9084,3999.4,3999.3,3.21017293]
[1758993153049,0.9084,3999.4,3999.3,0.00237293]
[1758993153246,0.9084,3999.4,3997.6,2.96370027]
[1758993153247,0.4217,3998.5,3998.4,0.7264]
[1758993153453,0.8065,3998.5,3998.4,1.2507]
[1758993153855,0.8065,3998.5,3998.4,19.27264895]
[1758993154154,0.8065,3998.5,3998.4,18.56274895]
[1758993154359,1.07362351,3998.5,3998.4,18.82579478]
[1758993155956,1.07362351,3998.5,3998.4,0.80384583]
[1758993156858,1.07362351,3998.5,3998.4,18.82579478]
[1758993159462,2.87686822,3998.5,3998.4,0.26304583]
[1758993159760,2.87686822,3998.5,3998.4,0.00304583]
[1758993166462,1.52352351,3998.5,3998.4,0.00304583]
[1758993166667,3.32676822,3998.5,3998.4,0.00304583]
[1758993168570,3.32676822,3998.5,3997.8,3.4843]
[1758993168571,1.35836,3997.9,3997.8,3.4843]
[1758993168961,1.35836,3997.9,3997.8,21.77054895]
[1758993169473,1.35836,3997.9,3997.8,21.77265564]
[1758993169766,1.35836,3997.9,3997.7,0.44998]
[1758993169767,0.3848,3997.8,3996.5,0.2546]
[1758993169968,4.1162,3997.3,3997.2,18.02194895]
[1758993170160,0.6863,3997.0,3996.9,18.02194895]
[1758993170568,0.9084,3996.7,3996.6,0.5365]
[1758993170770,0.9084,3996.7,3996.6,0.53874283]
[1758993170971,0.9084,3996.7,3996.6,0.80304283]
[1758993171271,0.9084,3996.7,3996.6,18.82499178]
[1758993172568,0.9084,3996.7,3996.6,19.07959178]
[1758993173672,0.87385,3997.2,3996.9,0.5418]
[1758993173870,0.87385,3997.2,3997.1,0.8108]
[1758993174075,3.2078,3997.3,3997.1,18.83274895]
[1758993174267,3.2078,3997.3,3997.2,18.83274895]
[1758993175163,0.4238,3997.6,3997.2,18.83274895]
[1758993175477,0.4238,3997.6,3997.5,18.83274895]
[1758993176079,0.4238,3997.6,3997.5,18.82374895]
[1758993176080,0.9442,3997.6,3997.5,18.82374895]
[1758993176270,0.9442,3997.6,3997.5,18.01602352]
[1758993176474,0.4238,3997.1,3997.0,0.8108]
[1758993176675,0.86292,3997.5,3997.4,0.5418]
[1758993177270,1.55572,3997.5,3997.4,0.5418]
[1758993177473,1.55572,3997.5,3997.4,0.2592]
[1758993177671,1.55572,3997.5,3996.9,0.269]
[1758993177672,1.55577,3997.0,3996.9,0.2592]
[1758993178067,1.55577,3997.0,3996.9,18.81782352]
[1758993180377,0.4238,3997.0,3996.9,19.08682352]
[1758993180573,3.2078,3997.1,3997.0,1.26087]
[1758993180877,3.2078,3997.1,3997.0,19.27689352]
[1758993181071,3.6316,3997.1,3997.0,19.27689352]
[1758993181377,3.883,3997.1,3997.0,18.82682352]
[1758993182179,4.152,3997.1,3997.0,18.55782352]
[1758993182476,4.65489559,3997.1,3997.0,18.81782352]
[1758993183765,4.13449559,3997.1,3997.0,19.08682352]
[1758993185076,3.2078,3997.1,3997.0,19.08682352]
[1758993186677,3.6316,3997.1,3997.0,19.08682352]
[1758993187472,3.2078,3997.1,3997.0,19.53689352]
[1758993191979,3.2078,3997.1,3997.0,18.79612352]
[1758993191980,4.58235,3997.1,3997.0,18.79612352]
[1758993192188,4.58235,3997.1,3997.0,19.50819352]
[1758993193279,4.58235,3997.1,3997.0,18.01602352]
[1758993193585,5.08625497,3997.1,3997.0,0.26]
[1758993193780,5.08625497,3997.1,3997.0,0.5253]
[1758993194581,5.08625497,3997.1,3997.0,0.26]
[1758993195273,5.08625497,3997.1,3996.6,0.45235283]
[1758993195274,0.9762,3996.7,3996.6,0.71765283]
[1758993195473,1.3746,3996.7,3996.6,0.97765283]
[1758993195671,1.3746,3996.7,3996.6,0.52754283]
[1758993195877,1.3746,3996.7,3996.6,18.54356635]
[1758993197075,0.9245,3996.7,3996.6,18.79836635]
[1758993198477,0.9245,3996.7,3996.6,18.53836635]
[1758993198675,0.5503,3997.0,3996.6,18.79836635]
[1758993198985,0.45003,3997.3,3997.2,0.7821]
[1758993199181,1.35224936,3997.3,3997.2,1.0421]
[1758993199386,1.35224936,3997.3,3997.2,19.05812352]
[1758993200788,1.61574936,3997.3,3997.2,19.05812352]
[1758993201883,3.32789297,3997.3,3997.2,18.01602352]
[1758993202097,1.37458,3996.9,3996.8,3.4731]
[1758993202285,1.37458,3996.9,3996.8,3.7331]
[1758993202590,1.37458,3996.9,3996.8,22.00392352]
[1758993203185,1.37458,3996.9,3996.8,21.74392352]
[1758993203487,1.37458,3996.9,3996.8,22.00392352]
[1758993204489,1.37458,3996.9,3996.8,21.74392352]
[1758993204884,1.37458,3996.9,3996.8,18.79612352]
[1758993205090,1.87876177,3996.9,3996.8,18.79612352]
[1758993205386,1.8787992,3996.9,3996.8,18.79612352]
[1758993206688,1.8787992,3996.9,3996.8,18.01602352]
[1758993206894,0.9212,3996.7,3996.6,0.00224283]
[1758993207086,6.08276281,3996.7,3996.6,0.00224283]
[1758993213387,11.08276281,3996.7,3996.6,0.00224283]
[1758993214700,11.08276281,3996.7,3995.8,0.6532]
[1758993214701,0.45019,3995.9,3995.8,0.9276]
[1758993214905,1.09759,3995.9,3995.8,1.1993]
[1758993215197,1.09759,3995.9,3995.8,19.47032352]
[1758993215906,1.09759,3995.9,3995.8,19.02208637]
[1758993216195,1.09759,3995.9,3995.8,19.47228637]
[1758993218295,0.6474,3995.9,3995.8,19.47228637]
[1758993219497,0.6474,3995.9,3995.8,19.52428637]
[1758993219892,0.6474,3995.9,3995.8,1.50826285]
[1758993220094,0.6474,3995.9,3995.8,19.52428637]
[1758993220393,0.6474,3995.9,3995.8,19.26528637]
[1758993220590,0.6474,3995.9,3995.8,19.52428637]
[1758993221600,0.3771,3996.2,3996.1,0.99227]
[1758993221791,0.3771,3996.2,3996.1,19.26329352]
[1758993221993,3.2078,3996.3,3996.2,1.24726]